Workbook

Sheet 资产负债表
A1: 资产负债表
A2: 公开01表
A3: 单位：安徽汽车工业技师学院 | F3: 金额单位：万元
A4: 项 目 | B4: 2024-12-31 | C4: 2023-12-31 | D4: 项 目 | E4: 2024-12-31 | F4: 2023-12-31
A5: 流动资产： | D5: 流动负债：
A6: 货币资金 | B6: =[1]BS!$F$6/10000 -> 10383.80 | C6: =[1]BS!$B$6/10000 -> 8843.47 | D6: 短期借款 | E6: =[1]BS!$F$81 -> 0 | F6: =[1]BS!$B$81 -> 0
A7: 交易性金融资产 | B7: =[1]BS!$F$7 -> 0 | C7: =[1]BS!$B$7 -> 0 | D7: 交易性金融负债 | E7: =[1]BS!$F$82 -> 0 | F7: =[1]BS!$B$82 -> 0
A8: 衍生金融资产 | B8: =[1]BS!$F$8 -> 0 | C8: =[1]BS!$B$8 -> 0 | D8: 衍生金融负债 | E8: =[1]BS!$F$83 -> 0 | F8: =[1]BS!$B$83 -> 0
A9: 应收票据 | B9: =[1]BS!$F$11 -> 0 | C9: =[1]BS!$B$11 -> 0 | D9: 应付票据 | E9: =[1]BS!$F$84 -> 0 | F9: =[1]BS!$B$84 -> 0
A10: 应收账款 | B10: =[1]BS!$F$14/10000 -> 258.37 | C10: =[1]BS!$B$14/10000 -> 256.93 | D10: 应付账款 | E10: =[1]BS!$F$85 -> 0 | F10: =[1]BS!$B$85 -> 0
A11: 应收款项融资 | B11: =[1]BS!$F$15 -> 0 | C11: =[1]BS!$B$15 -> 0 | D11: 预收款项 | E11: =[1]BS!$F$86/10000 -> 24.53 | F11: =[1]BS!$B$86/10000 -> 100.45
A12: 预付款项 | B12: =[1]BS!$F$16 -> 0 | C12: =[1]BS!$B$16 -> 0 | D12: 合同负债 | E12: =[1]BS!$F$87 -> 0 | F12: =[1]BS!$B$87 -> 0
A13: 其他应收款 | B13: =[1]BS!$F$17/10000 -> 0.08 | C13: =[1]BS!$B$17/10000 -> 530.01 | D13: 应付职工薪酬 | E13: =[1]BS!$F$88/10000 -> 95.67 | F13: =[1]BS!$B$88/10000 -> 98.25
A14: 存货 | B14: =[1]BS!$F$25 -> 0 | C14: =[1]BS!$B$25 -> 0 | D14: 应交税费 | E14: =[1]BS!$F$89/10000 -> 9.31 | F14: =[1]BS!$B$89/10000 -> 27.04
A15: 合同资产 | B15: =[1]BS!$F$28 -> 0 | C15: =[1]BS!$B$28 -> 0 | D15: 其他应付款 | E15: =[1]BS!$F$90/10000 -> 375.21 | F15: =[1]BS!$B$90/10000 -> 376.92
A16: 持有待售资产 | B16: =[1]BS!$F$29 -> 0 | C16: =[1]BS!$B$29 -> 0 | D16: 持有待售负债 | E16: =[1]BS!$F$94 -> 0 | F16: =[1]BS!$B$94 -> 0
A17: 一年内到期的非流动资产 | B17: =[1]BS!$F$30 -> 0 | C17: =[1]BS!$B$30 -> 0 | D17: 一年内到期的非流动负债 | E17: =[1]BS!$F$95 -> 0 | F17: =[1]BS!$B$95 -> 0
A18: 其他流动资产 | B18: =[1]BS!$F$31 -> 0 | C18: =[1]BS!$B$31 -> 0 | D18: 其他流动负债 | E18: =[1]BS!$F$96 -> 0 | F18: =[1]BS!$B$96 -> 0
A19: 流动资产合计 | B19: =SUM(B6:B18) -> 10642.25 | C19: 9630.42 | D19: 流动负债合计 | E19: 504.72 | F19: 602.66
A20: 非流动资产： | D20: 非流动负债：
A21: 债权投资 | B21: =[1]BS!$F$34 -> 0 | C21: =[1]BS!$B$34 -> 0 | D21: 长期借款 | E21: =[1]BS!$F$104 -> 0 | F21: =[1]BS!$B$104 -> 0
A22: 其他债权投资 | B22: =[1]BS!$F$35 -> 0 | C22: =[1]BS!$B$35 -> 0 | D22: 应付债券 | E22: =[1]BS!$F$105 -> 0 | F22: =[1]BS!$B$105 -> 0
A23: 长期应收款 | B23: =[1]BS!$F$36 -> 0 | C23: =[1]BS!$B$36 -> 0 | D23: 其中：优先股
A24: 长期股权投资 | B24: =[1]BS!$F$39 -> 0 | C24: =[1]BS!$B$39 -> 0 | D24: 永续债
A25: 其他权益工具投资 | B25: =[1]BS!$F$40 -> 0 | C25: =[1]BS!$B$40 -> 0 | D25: 租赁负债 | E25: =[1]BS!$F$106 -> 0 | F25: =[1]BS!$B$106 -> 0
A26: 其他非流动金融资产 | B26: =[1]BS!$F$41 -> 0 | C26: =[1]BS!$B$41 -> 0 | D26: 长期应付款 | E26: =[1]BS!$F$107 -> 0 | F26: =[1]BS!$B$107 -> 0
A27: 投资性房地产 | B27: =[1]BS!$F$51 -> 0 | C27: =[1]BS!$B$51 -> 0 | D27: 长期应付职工薪酬
A28: 固定资产 | B28: =[1]BS!$F$52/10000 -> 3903.47 | C28: =[1]BS!$B$52/10000 -> 4410.63 | D28: 预计负债 | E28: =[1]BS!$F$110 -> 0 | F28: =[1]BS!$B$110 -> 0
A29: 在建工程 | B29: =[1]BS!$F$59 -> 0 | C29: =[1]BS!$B$59 -> 0 | D29: 递延收益 | E29: =[1]BS!$F$111/10000 -> 1123.40 | F29: =[1]BS!$B$111/10000 -> 523.33
A30: 生产性生物资产 | D30: 递延所得税负债 | E30: =[1]BS!$F$112 -> 0 | F30: =[1]BS!$B$112 -> 0
A31: 油气资产 | D31: 其他非流动负债 | E31: =[1]BS!$F$113 -> 0 | F31: =[1]BS!$B$113 -> 0
A32: 使用权资产 | B32: =[1]BS!$F$42 -> 0 | C32: =[1]BS!$B$42 -> 0 | D32: 非流动负债合计 | E32: =SUM(E21:E31)-E23-E24 -> 1123.40 | F32: =SUM(F21:F31)-F23-F24 -> 523.33
A33: 无形资产 | B33: =[1]BS!$F$68/10000 -> 0.23 | C33: =[1]BS!$B$68/10000 -> 0.93 | D33: 负债合计 | E33: =E19+E32 -> 1628.11 | F33: =F19+F32 -> 1125.99
A34: 开发支出 | B34: =[1]BS!$F$69 -> 0 | C34: =[1]BS!$B$69 -> 0 | D34: 所有者权益：
A35: 商誉 | B35: =[1]BS!$F$70 -> 0 | C35: =[1]BS!$B$70 -> 0 | D35: 实收资本 | E35: =[1]BS!$F$122/10000 -> 5278.64 | F35: =[1]BS!$B$122/10000 -> 5278.64
A36: 长期待摊费用 | B36: =[1]BS!$F$71 -> 0 | C36: =[1]BS!$B$71 -> 0 | D36: 其他权益工具 | E36: =[1]BS!$F$123 -> 0 | F36: =[1]BS!$B$123 -> 0
A37: 递延所得税资产 | B37: =[1]BS!$F$72 -> 0 | C37: =[1]BS!$B$72 -> 0 | D37: 其中：优先股
A38: 其他非流动资产 | B38: =[1]BS!$F$73 -> 0 | C38: =[1]BS!$B$73 -> 0 | D38: 永续债
A39: 非流动资产合计 | B39: =SUM(B22:B38) -> 3903.71 | C39: =SUM(C22:C38) -> 4411.56 | D39: 资本公积 | E39: =[1]BS!$F$124 -> 0 | F39: =[1]BS!$B$124 -> 0
D40: 减：库存股 | E40: =[1]BS!$F$125 -> 0 | F40: =[1]BS!$B$125 -> 0
D41: 其他综合收益 | E41: =[1]BS!$F$126 -> 0 | F41: =[1]BS!$B$126 -> 0
D42: 专项储备 | E42: =[1]BS!$F$127 -> 0 | F42: =[1]BS!$B$127 -> 0
D43: 盈余公积 | E43: =[1]BS!$F$128/10000 -> 756.94 | F43: =[1]BS!$B$128/10000 -> 756.75
D44: 未分配利润 | E44: =[1]BS!$F$130/10000 -> 6882.27 | F44: =[1]BS!$B$130/10000 -> 6880.60
D45: 所有者权益合计 | E45: =SUM(E35:E36)+E39-E40+SUM(E41:E44) -> 12917.85 | F45: =SUM(F35:F36)+F39-F40+SUM(F41:F44) -> 12915.99
A46: 资产总计 | B46: =B19+B39 -> 14545.96 | C46: =C19+C39 -> 14041.98 | D46: 负债和所有者权益总计 | E46: =E33+E45 -> 14545.96 | F46: =F33+F45 -> 14041.98

Sheet 利润表
A1: 利润表
A2: 公开02表
A3: =资产负债表!A3 -> 单位：安徽汽车工业技师学院 | C3: 金额单位：万元
A4: 项 目 | B4: 2024年度 | C4: 2023年度
A5: 一、营业收入 | B5: =[1]IS!$F$5/10000 -> 405.69 | C5: =[1]IS!$B$5/10000 -> 637.87
A6: 减：营业成本 | B6: =([1]IS!$F$9+[1]IS!$F$10)/10000 -> 967.02 | C6: =([1]IS!$B$9+[1]IS!$B$10)/10000 -> 1020.69
A7: 税金及附加 | B7: =[1]IS!$F$11/10000 -> 1.03 | C7: =[1]IS!$B$11/10000 -> 0.76
A8: 销售费用 | B8: =[1]IS!$F$12 -> 0 | C8: =[1]IS!$B$12 -> 0
A9: 管理费用 | B9: =[1]IS!$F$13/10000 -> 178.26 | C9: =[1]IS!$B$13/10000 -> 258.03
A10: 研发费用 | B10: =[1]IS!$F$14 -> 0 | C10: =[1]IS!$B$14 -> 0
A11: 财务费用 | B11: =[1]IS!$F$15/10000 -> -95.84 | C11: =[1]IS!$B$15/10000 -> -96.54
A12: 其中：利息费用 | B12: =[1]IS!$F$16 -> 0 | C12: =[1]IS!$B$16 -> 0
A13: 利息收入 | B13: =[1]IS!$F$17/10000 -> 96.13 | C13: =[1]IS!$B$17/10000 -> 96.79
A14: 加：其他收益 | B14: =[1]IS!$F$18/10000 -> 656.36 | C14: =[1]IS!$B$18/10000 -> 600.19
A15: 投资收益（损失以“-”号填列） | B15: =[1]IS!$F$19 -> 0 | C15: =[1]IS!$B$19 -> 0
A16: 其中：对联营企业和合营企业的投资收益 | B16: =[1]IS!$F$20 -> 0 | C16: =[1]IS!$B$20 -> 0
A17: 以摊余成本计量的金融资产终止确认收益 | B17: =[1]IS!$F$21 -> 0 | C17: =[1]IS!$B$21 -> 0
A18: 净敞口套期收益（损失以“-”号填列） | B18: =[1]IS!$F$22 -> 0 | C18: =[1]IS!$B$22 -> 0
A19: 公允价值变动收益（损失以“-”号填列） | B19: =[1]IS!$F$23 -> 0 | C19: =[1]IS!$B$23 -> 0
A20: 信用减值损失（损失以“-”号填列） | B20: =[1]IS!$F$24/10000 -> 1.29 | C20: =[1]IS!$B$24/10000 -> -17.60
A21: 资产减值损失（损失以“-”号填列） | B21: =[1]IS!$F$25 -> 0 | C21: =[1]IS!$B$25 -> 0
A22: 资产处置收益（损失以“-”号填列） | B22: =[1]IS!$F$26 -> 0 | C22: =[1]IS!$B$26 -> 0
A23: 二、营业利润（亏损以“-”号填列） | B23: =B5-SUM(B6:B11)+SUM(B14:B15)+SUM(B18:B22) -> 12.88 | C23: =C5-SUM(C6:C11)+SUM(C14:C15)+SUM(C18:C22) -> 37.53
A24: 加：营业外收入 | B24: =[1]IS!$F$28/10000 -> 1.46 | C24: =[1]IS!$B$28/10000 -> 0.05
A25: 减：营业外支出 | B25: =[1]IS!$F$29/10000 -> 1.26 | C25: =[1]IS!$B$29/10000 -> 0.54
A26: 三、利润总额（亏损总额以“-”号填列） | B26: =B23+B24-B25 -> 13.08 | C26: =C23+C24-C25 -> 37.04
A27: 减：所得税费用 | B27: =[1]IS!$F$31/10000 -> 11.23 | C27: =[1]IS!$B$31/10000 -> 33.47
A28: 四、净利润（净亏损以“-”号填列） | B28: =B26-B27 -> 1.86 | C28: =C26-C27 -> 3.57
A29: （一）持续经营净利润（净亏损以“-”号填列） | B29: =[1]IS!$F$34/10000 -> 1.86 | C29: =[1]IS!$B$34/10000 -> 3.57
A30: （二）终止经营净利润（净亏损以“-”号填列）
A31: 五、其他综合收益的税后净额 | B31: =B32+B37 -> 0 | C31: =C32+C37 -> 0
A32: （一）不能重分类进损益的其他综合收益 | B32: =SUM(B33:B36) -> 0 | C32: =SUM(C33:C36) -> 0
A33: 1.重新计量设定受益计划变动额
A34: 2.权益法下不能转损益的其他综合收益
A35: 3.其他权益工具投资公允价值变动
A36: 4.企业自身信用风险公允价值变动
A37: （二）将重分类进损益的其他综合收益 | B37: =SUM(B38:B43) -> 0 | C37: =SUM(C38:C43) -> 0
A38: 1.权益法下可转损益的其他综合收益
A39: 2.其他债权投资公允价值变动
A40: 3.金融资产重分类计入其他综合收益的金额
A41: 4.其他债权投资信用减值准备
A42: 5.现金流量套期储备
A43: 6.外币财务报表折算差额
A44: 六、综合收益总额 | B44: =B28+B31 -> 1.86 | C44: =C28+C31 -> 3.57

Sheet 现金流量表
A1: 现金流量表
A2: 公开03表
A3: =资产负债表!A3 -> 单位：安徽汽车工业技师学院 | C3: 金额单位：万元
A4: 项 目 | B4: 2024年度 | C4: 2023年度
A5: 一、经营活动产生的现金流量
A6: 销售商品、提供劳务收到的现金 | B6: ='[1]CF '!$D$5/10000 -> 407.93 | C6: ='[1]CF '!$E$5/10000 -> 638.12
A7: 收到的税费返还 | B7: ='[1]CF '!$D$7 -> 0 | C7: ='[1]CF '!$E$7 -> 0
A8: 收到其他与经营活动有关的现金 | B8: ='[1]CF '!$D$8/10000 -> 1884.23 | C8: ='[1]CF '!$E$8/10000 -> 941.28
A9: 经营活动现金流入小计 | B9: =SUM(B6:B8) -> 2292.16 | C9: =SUM(C6:C8) -> 1579.41
A10: 购买商品、接受劳务支付的现金 | B10: ='[1]CF '!$D$10 -> 0 | C10: ='[1]CF '!$E$10 -> 0
A11: 支付给职工以及为职工支付的现金 | B11: ='[1]CF '!$D$11/10000 -> 454.66 | C11: ='[1]CF '!$E$11/10000 -> 548.69
A12: 支付的各项税费 | B12: ='[1]CF '!$D$12/10000 -> 39.27 | C12: ='[1]CF '!$E$12/10000 -> 12.53
A13: 支付其他与经营活动有关的现金 | B13: ='[1]CF '!$D$13/10000 -> 286.93 | C13: ='[1]CF '!$E$13/10000 -> 257.21
A14: 经营活动现金流出小计 | B14: =SUM(B10:B13) -> 780.86 | C14: =SUM(C10:C13) -> 818.43
A15: 经营活动产生的现金流量净额 | B15: =B9-B14 -> 1511.30 | C15: =C9-C14 -> 760.98
A16: 二、投资活动产生的现金流量
A17: 收回投资收到的现金 | B17: ='[1]CF '!$D$17 -> 0 | C17: ='[1]CF '!$E$17 -> 0
A18: 取得投资收益收到的现金 | B18: ='[1]CF '!$D$18 -> 0 | C18: ='[1]CF '!$E$18 -> 0
A19: 处置固定资产、无形资产和其他长期资产收回的现金净额 | B19: ='[1]CF '!$D$19/10000 -> 1.65 | C19: ='[1]CF '!$E$19/10000 -> 0.08
A20: 处置子公司及其他营业单位收到的现金净额 | B20: ='[1]CF '!$D$20 -> 0 | C20: ='[1]CF '!$E$20 -> 0
A21: 收到其他与投资活动有关的现金 | B21: ='[1]CF '!$D$21/10000 -> 3057.60 | C21: ='[1]CF '!$E$21/10000 -> 1000.00
A22: 投资活动现金流入小计 | B22: =SUM(B17:B21) -> 3059.25 | C22: =SUM(C17:C21) -> 1000.08
A23: 购建固定资产、无形资产和其他长期资产支付的现金 | B23: ='[1]CF '!$D$23/10000 -> 30.22 | C23: ='[1]CF '!$E$23/10000 -> 21.57
A24: 投资支付的现金 | B24: ='[1]CF '!$D$24 -> 0 | C24: ='[1]CF '!$E$24 -> 0
A25: 取得子公司及其他营业单位支付的现金净额 | B25: ='[1]CF '!$D$25 -> 0 | C25: ='[1]CF '!$E$25 -> 0
A26: 支付其他与投资活动有关的现金 | B26: ='[1]CF '!$D$26/10000 -> 3000.00 | C26: ='[1]CF '!$E$26/10000 -> 1000.00
A27: 投资活动现金流出小计 | B27: =SUM(B23:B26) -> 3030.22 | C27: =SUM(C23:C26) -> 1021.57
A28: 投资活动产生的现金流量净额 | B28: =B22-B27 -> 29.02 | C28: =C22-C27 -> -21.48
A29: 三、筹资活动产生的现金流量
A30: 吸收投资收到的现金 | B30: ='[1]CF '!$D$30 -> 0 | C30: ='[1]CF '!$E$30 -> 0
A31: 取得借款收到的现金 | B31: ='[1]CF '!$D$32 -> 0 | C31: ='[1]CF '!$E$32 -> 0
A32: 收到其他与筹资活动有关的现金 | B32: ='[1]CF '!$D$34 -> 0 | C32: ='[1]CF '!$E$34 -> 0
A33: 筹资活动现金流入小计 | B33: =SUM(B30:B32) -> 0 | C33: =SUM(C30:C32) -> 0
A34: 偿还债务支付的现金 | B34: ='[1]CF '!$D$36 -> 0 | C34: ='[1]CF '!$E$36 -> 0
A35: 分配股利、利润或偿付利息支付的现金 | B35: ='[1]CF '!$D$37 -> 0 | C35: ='[1]CF '!$E$37 -> 0
A36: 支付其他与筹资活动有关的现金 | B36: ='[1]CF '!$D$39 -> 0 | C36: ='[1]CF '!$E$39 -> 0
A37: 筹资活动现金流出小计 | B37: =SUM(B34:B36) -> 0 | C37: =SUM(C34:C36) -> 0
A38: 筹资活动产生的现金流量净额 | B38: =B33-B37 -> 0 | C38: =C33-C37 -> 0
A39: 四、汇率变动对现金及现金等价物的影响 | B39: ='[1]CF '!$D$42 -> 0 | C39: ='[1]CF '!$E$42 -> 0
A40: 五、现金及现金等价物净增加额 | B40: =B15+B28+B38+B39 -> 1540.33 | C40: =C15+C28+C38+C39 -> 739.49
A41: 加：期初现金及现金等价物余额 | B41: ='[1]CF '!$D$44/10000 -> 8843.47 | C41: ='[1]CF '!$E$44/10000 -> 8103.98
A42: 六、期末现金及现金等价物余额 | B42: =B40+B41 -> 10383.80 | C42: =C40+C41 -> 8843.47
B45: =B42-资产负债表!B6+B47 -> 0 | C45: =C42-资产负债表!C6+C47 -> 0

Sheet 所有者权益变动表
A1: 所有者权益变动表
A2: 公开04表
A3: =现金流量表!A3 -> 单位：安徽汽车工业技师学院 | L3: 金额单位：万元
A4: 项目 | B4: 2024年度
B5: 实收资本 | C5: 其他权益工具 | F5: 资本公积 | G5: 减：库存股 | H5: 其他综合收益 | I5: 专项储备 | J5: 盈余公积 | K5: 未分配利润 | L5: 所有者权益合计
A6: 项目 | C6: 优先股 | D6: 永续债 | E6: 其他
A7: 一、上年年末余额 | B7: =B69 -> 5278.64 | C7: 0 | D7: 0 | E7: 0 | F7: 0 | G7: 0 | H7: 0 | I7: 0 | J7: 756.75 | K7: 6880.60 | L7: =SUM(B7:F7)-G7+SUM(H7:K7) -> 12915.99
A8: 加： 会计政策变更 | L8: 0
A9: 前期差错更正 | L9: 0
A10: 其他 | L10: 0
A11: 二、本年年初余额 | B11: =SUM(B7:B10) -> 5278.64 | C11: 0 | D11: 0 | E11: 0 | F11: 0 | G11: 0 | H11: 0 | I11: 0 | J11: 756.75 | K11: 6880.60 | L11: 12915.99
A12: 三、本年增减变动金额(减少以“-”号填列) | B12: =B13+B14+B19+B23+B30+B33 -> 0 | C12: 0 | D12: 0 | E12: 0 | F12: 0 | G12: 0 | H12: 0 | I12: 0 | J12: 0.19 | K12: 1.67 | L12: 1.86
A13: （一）综合收益总额 | H13: =利润表!B31 -> 0 | K13: =利润表!B28 -> 1.86 | L13: 1.86
A14: （二）所有者投入和减少资本 | B14: =SUM(B15:B18) -> 0 | C14: 0 | D14: 0 | E14: 0 | F14: 0 | G14: 0 | H14: 0 | I14: 0 | J14: 0 | K14: 0 | L14: 0
A15: 1. 所有者投入的普通股 | L15: 0
A16: 2．其他权益工具持有者投入资本 | L16: 0
A17: 3．股份支付计入所有者权益的金额 | F17: =资产负债表!E39-资产负债表!F39 -> 0 | L17: 0
A18: 4．其他 | L18: 0
A19: （三）利润分配 | B19: =SUM(B20:B22) -> 0 | C19: 0 | D19: 0 | E19: 0 | F19: 0 | G19: 0 | H19: 0 | I19: 0 | J19: 0.19 | K19: -0.19 | L19: 0
A20: 1．提取盈余公积 | J20: =资产负债表!E43-资产负债表!F43 -> 0.19 | K20: =0-J20 -> -0.19 | L20: 0
A21: 2．对所有者（或股东）的分配 | L21: 0
A22: 3．其他 | L22: 0
A23: （四）所有者权益内部结转 | B23: =SUM(B24:B29) -> 0 | C23: 0 | D23: 0 | E23: 0 | F23: 0 | G23: 0 | H23: 0 | I23: 0 | J23: 0 | K23: 0 | L23: 0
A24: 1．资本公积转增资本（或股本） | L24: 0
A25: 2．盈余公积转增资本（或股本） | L25: 0
A26: 3．盈余公积弥补亏损 | L26: 0
A27: 4．设定受益计划变动额结转留存收益 | L27: 0
A28: 5. 其他综合收益结转留存收益 | L28: 0
A29: 6. 其他 | L29: 0
A30: （五）专项储备 | B30: =B31-B32 -> 0 | C30: 0 | D30: 0 | E30: 0 | F30: 0 | G30: 0 | H30: 0 | I30: 0 | J30: 0 | K30: 0 | L30: 0
A31: 1．本年提取 | L31: 0
A32: 2．本年使用 | L32: 0
A33: （六）其他 | L33: 0
A34: 四、本年年末余额 | B34: =B11+B12 -> 5278.64 | C34: 0 | D34: 0 | E34: 0 | F34: 0 | G34: 0 | H34: 0 | I34: 0 | J34: 756.94 | K34: 6882.27 | L34: 12917.85
A36: 所有者权益变动表（续）
A37: 公开04表
A38: =资产负债表!A3 -> 单位：安徽汽车工业技师学院 | L38: 金额单位：万元
A39: 项目 | B39: 2023年度
B40: 实收资本 | C40: 其他权益工具 | F40: 资本公积 | G40: 减：库存股 | H40: 其他综合收益 | I40: 专项储备 | J40: 盈余公积 | K40: 未分配利润 | L40: 所有者权益合计
A41: 项目 | C41: 优先股 | D41: 永续债 | E41: 其他
A42: 一、上年年末余额 | B42: =52786394.52/10000 -> 5278.64 | C42: 0 | D42: 0 | E42: 0 | F42: 0 | G42: 0 | H42: 0 | I42: 0 | J42: =7563947.58/10000 -> 756.39 | K42: =68773903.65/10000 -> 6877.39 | L42: =SUM(B42:F42)-G42+SUM(H42:K42) -> 12912.42
A43: 加： 会计政策变更 | L43: 0
A44: 前期差错更正 | L44: 0
A45: 其他 | L45: 0
A46: 二、本年年初余额 | B46: =SUM(B42:B45) -> 5278.64 | C46: 0 | D46: 0 | E46: 0 | F46: 0 | G46: 0 | H46: 0 | I46: 0 | J46: 756.39 | K46: 6877.39 | L46: 12912.42
A47: 三、本年增减变动金额(减少以“-”号填列) | B47: =B48+B49+B54+B58+B65+B68 -> 0 | C47: 0 | D47: 0 | E47: 0 | F47: 0 | G47: 0 | H47: 0 | I47: 0 | J47: 0.36 | K47: 3.21 | L47: 3.57
A48: （一）综合收益总额 | H48: =利润表!C31 -> 0 | K48: =利润表!C28 -> 3.57 | L48: 3.57
A49: （二）所有者投入和减少资本 | B49: =SUM(B50:B53) -> 0 | C49: 0 | D49: 0 | E49: 0 | F49: 0 | G49: 0 | H49: 0 | I49: 0 | J49: 0 | K49: 0 | L49: 0
A50: 1. 所有者投入的普通股 | L50: 0
A51: 2．其他权益工具持有者投入资本 | L51: 0
A52: 3．股份支付计入所有者权益的金额 | L52: 0
A53: 4．其他 | L53: 0
A54: （三）利润分配 | B54: =SUM(B55:B57) -> 0 | C54: 0 | D54: 0 | E54: 0 | F54: 0 | G54: 0 | H54: 0 | I54: 0 | J54: 0.36 | K54: -0.36 | L54: 0
A55: 1．提取盈余公积 | J55: =3567.86000000034/10000 -> 0.36 | K55: =0-J55 -> -0.36 | L55: 0
A56: 2．对所有者（或股东）的分配 | L56: 0
A57: 3．其他 | L57: 0
A58: （四）所有者权益内部结转 | B58: =SUM(B59:B64) -> 0 | C58: 0 | D58: 0 | E58: 0 | F58: 0 | G58: 0 | H58: 0 | I58: 0 | J58: 0 | K58: 0 | L58: 0
A59: 1．资本公积转增资本（或股本） | L59: 0
A60: 2．盈余公积转增资本（或股本） | L60: 0
A61: 3．盈余公积弥补亏损 | L61: 0
A62: 4．设定受益计划变动额结转留存收益 | L62: 0
A63: 5. 其他综合收益结转留存收益 | L63: 0
A64: 6. 其他 | L64: 0
A65: （五）专项储备 | B65: =B66-B67 -> 0 | C65: 0 | D65: 0 | E65: 0 | F65: 0 | G65: 0 | H65: 0 | I65: 0 | J65: 0 | K65: 0 | L65: 0
A66: 1．本年提取 | L66: 0
A67: 2．本年使用 | L67: 0
A68: （六）其他 | L68: 0
A69: 四、本年年末余额 | B69: =B46+B47 -> 5278.64 | C69: 0 | D69: 0 | E69: 0 | F69: 0 | G69: 0 | H69: 0 | I69: 0 | J69: 756.75 | K69: 6880.60 | L69: 12915.99

Sheet 三公经费
A1: 安徽汽车工业技师学院2024年度“三公”经费支出决算表
A2: 公开05表
A3: 单位：安徽汽车工业技师学院 | C3: 金额单位：万元
A4: 项目 | B4: 预算数 | C4: 决算数
A5: 因公出国（境）费 | B5: 0 | C5: 0
A6: 公务接待费 | B6: =[2]技师明细!$B$17 -> 1 | C6: =[2]技师明细!$O$17 -> 0.45
A7: 公务用车购置及运行费 | B7: =B8+B9 -> 3.2 | C7: =C8+C9 -> 3.15
A8: 其中：公务用车运行维护费 | B8: =[2]技师明细!$B$21 -> 3.2 | C8: =[2]技师明细!$O$21 -> 3.15
A9: 公务用车购置费 | B9: 0 | C9: 0
A10: 总计 | B10: =B5+B6+B7 -> 4.2 | C10: =C5+C6+C7 -> 3.6
